Workbook

Sheet Financial Model
A1: Timing | J1: 1 | K1: 2 | L1: 3 | M1: 4 | N1: 5 | O1: 6 | P1: 7 | Q1: 8 | R1: 9 | S1: 10 | T1: 11 | U1: 12 | V1: 13 | W1: 14 | X1: 15 | Y1: 16 | Z1: 17 | AA1: 18 | AB1: 19 | AC1: 20 | AD1: 21 | AE1: 22 | AF1: 23 | AG1: 24 | AH1: 25 | AI1: 26 | AJ1: 27 | AK1: 28 | AL1: 29 | AM1: 30 | AN1: 31 | AO1: 32 | AP1: 33 | AQ1: 34 | AR1: 35 | AS1: 36 | AT1: 37 | AU1: 38 | AV1: 39
B2: Date | E2: Equity IRR | F2: =E205 -> 0.2638932681 | J2: =F8 -> 2019-01-01 | K2: =EDATE(J2,12) -> 2020-01-01 | L2: =EDATE(K2,12) -> 2021-01-01 | M2: 2022-01-01 | N2: 2023-01-01 | O2: 2024-01-01 | P2: 2025-01-01 | Q2: 2026-01-01 | R2: 2027-01-01 | S2: 2028-01-01 | T2: 2029-01-01 | U2: 2030-01-01 | V2: 2031-01-01 | W2: 2032-01-01 | X2: 2033-01-01 | Y2: 2034-01-01 | Z2: 2035-01-01 | AA2: 2036-01-01 | AB2: 2037-01-01 | AC2: 2038-01-01 | AD2: 2039-01-01 | AE2: 2040-01-01 | AF2: 2041-01-01 | AG2: 2042-01-01 | AH2: 2043-01-01 | AI2: =EDATE(AH2,12) -> 2044-01-01 | AJ2: =EDATE(AI2,12) -> 2045-01-01 | AK2: =EDATE(AJ2,12) -> 2046-01-01 | AL2: =EDATE(AK2,12) -> 2047-01-01 | AM2: =EDATE(AL2,12) -> 2048-01-01 | AN2: =EDATE(AM2,12) -> 2049-01-01 | AO2: =EDATE(AN2,12) -> 2050-01-01 | AP2: =EDATE(AO2,12) -> 2051-01-01 | AQ2: =EDATE(AP2,12) -> 2052-01-01 | AR2: =EDATE(AQ2,12) -> 2053-01-01 | AS2: =EDATE(AR2,12) -> 2054-01-01 | AT2: =EDATE(AS2,12) -> 2055-01-01 | AU2: =EDATE(AT2,12) -> 2056-01-01 | AV2: =EDATE(AU2,12) -> 2057-01-01
B3: Construction | E3: Project IRR | F3: =F58 -> 0.09014026807 | G3: =F8 -> 2019-01-01 | H3: =F10 -> 2022-01-01 | J3: =J2<$H$3 -> TRUE | K3: =K2<$H$3 -> TRUE | L3: TRUE | M3: FALSE | N3: FALSE | O3: FALSE | P3: FALSE | Q3: FALSE | R3: FALSE | S3: FALSE | T3: FALSE | U3: FALSE | V3: FALSE | W3: FALSE | X3: FALSE | Y3: FALSE | Z3: FALSE | AA3: FALSE | AB3: FALSE | AC3: FALSE | AD3: FALSE | AE3: FALSE | AF3: FALSE | AG3: FALSE | AH3: FALSE | AI3: =AI2<$H$3 -> FALSE | AJ3: FALSE | AK3: FALSE | AL3: FALSE | AM3: FALSE | AN3: FALSE | AO3: FALSE | AP3: FALSE | AQ3: FALSE | AR3: FALSE | AS3: FALSE | AT3: FALSE | AU3: FALSE | AV3: FALSE
B4: Operation | E4: Pre-tax IRR | F4: =F49 -> 0.1100018411 | G4: =F10 -> 2022-01-01 | H4: =F12 -> 2042-01-01 | J4: =AND(NOT(J3),J2<$H$4) -> FALSE | K4: =AND(NOT(K3),K2<$H$4) -> FALSE | L4: FALSE | M4: TRUE | N4: TRUE | O4: TRUE | P4: TRUE | Q4: TRUE | R4: TRUE | S4: TRUE | T4: TRUE | U4: TRUE | V4: TRUE | W4: TRUE | X4: TRUE | Y4: TRUE | Z4: TRUE | AA4: TRUE | AB4: TRUE | AC4: TRUE | AD4: TRUE | AE4: TRUE | AF4: TRUE | AG4: FALSE | AH4: FALSE | AI4: =AND(NOT(AI3),AI2<$H$4) -> FALSE | AJ4: FALSE | AK4: FALSE | AL4: FALSE | AM4: FALSE | AN4: FALSE | AO4: FALSE | AP4: FALSE | AQ4: FALSE | AR4: FALSE | AS4: FALSE | AT4: FALSE | AU4: FALSE | AV4: FALSE
A6: Assumptions
B7: Timing
C8: FC | E8: Date | F8: 2019-01-01
C9: Construction | E9: Years | F9: 3
C10: COD | E10: Date | F10: =EDATE(F8,F9*12) -> 2022-01-01
C11: Operations | E11: Years | F11: 20
C12: Decommissioning | E12: Date | F12: =EDATE(F10,F11*12) -> 2042-01-01
B14: Operating | G14: 0 | H14: 1 | I14: 5 | J14: 12
C15: EBITDA P50 | E15: Euro | F15: TRUE | H15: 100 | I15: 125 | J15: 80
C16: EBITDA P99 | E16: Euro | F16: =NOT(F15) -> FALSE | H16: 70 | I16: 80 | J16: 65
C17: Applied | H17: =H15*$F15+H16*$F16 -> 100 | I17: =I15*$F15+I16*$F16 -> 125 | J17: =J15*$F15+J16*$F16 -> 80
C19: Capital Expenditure | E19: Euro | F19: 725
C21: Tax Rate | E21: Percent | F21: 0.21
B23: Financing
C24: DSCR - P50 | E24: Times | F24: 1.7
C25: DSCR - P99 | E25: Times | F25: 1
C26: DSCR Applied | F26: =SUMPRODUCT(F15:F16*F24:F25) -> 1.7
C28: Up-Front Equity | E28: Percent | F28: 0.72
C30: Tenor | E30: Years | F30: 12
C31: Repayment Date | E31: Date | F31: =EDATE(F10,F30*12) -> 2034-01-01
F33: 1 | G33: 4 | H33: 7 | I33: 11
C34: Interest Rate | E34: %.p.a | F34: 0.035 | G34: 0.04 | H34: 0.042 | I34: 0.044
C35: Up Front Fee | E35: % | F35: 0.015
C36: Commitment Fee | E36: %.p.a. | F36: 0.0125
C38: Capitalise Interest and Fees | E38: Switch | F38: TRUE
C40: DSRA Percent or Periods | E40: Percent | F40: 3
C41: DSRA Periods Switch | E41: Switch | F41: =F40>=1 -> TRUE
A43: Operations
J44: =I44+J4 -> 0 | K44: =J44+K4 -> 0 | L44: 0 | M44: 1 | N44: 2 | O44: 3 | P44: 4 | Q44: 5 | R44: 6 | S44: 7 | T44: 8 | U44: 9 | V44: 10 | W44: 11 | X44: 12 | Y44: 13 | Z44: 14 | AA44: 15 | AB44: 16 | AC44: 17 | AD44: 18 | AE44: 19 | AF44: 20 | AG44: 20 | AH44: 20 | AI44: =AH44+AI4 -> 20 | AJ44: =AI44+AJ4 -> 20 | AK44: =AJ44+AK4 -> 20 | AL44: =AK44+AL4 -> 20 | AM44: =AL44+AM4 -> 20 | AN44: =AM44+AN4 -> 20 | AO44: =AN44+AO4 -> 20 | AP44: =AO44+AP4 -> 20 | AQ44: =AP44+AQ4 -> 20 | AR44: =AQ44+AR4 -> 20 | AS44: =AR44+AS4 -> 20 | AT44: =AS44+AT4 -> 20 | AU44: =AT44+AU4 -> 20 | AV44: =AU44+AV4 -> 20
B45: EBITDA | J45: =interpolate_look_up(J44,14:14,17:17)*J4 -> 0 | K45: =interpolate_look_up(K44,14:14,17:17)*K4 -> 0 | L45: 0 | M45: 100 | N45: 105.7371263 | O45: 111.8033989 | P45: 118.2177011 | Q45: 125 | R45: 117.2793196 | S45: 110.0355105 | T45: 103.2391185 | U45: 96.86250859 | V45: 90.87975285 | W45: 85.26652466 | X45: 80 | Y45: 80 | Z45: 80 | AA45: 80 | AB45: 80 | AC45: 80 | AD45: 80 | AE45: 80 | AF45: 80 | AG45: 0 | AH45: 0 | AI45: =interpolate_look_up(AI44,14:14,17:17)*AI4 -> 0 | AJ45: 0 | AK45: 0 | AL45: 0 | AM45: 0 | AN45: 0 | AO45: 0 | AP45: 0 | AQ45: 0 | AR45: 0 | AS45: 0 | AT45: 0 | AU45: 0 | AV45: 0
B47: Capital Expenditures | G47: =F9 -> 3 | H47: =F19 -> 725 | J47: =$H$47/$G$47*J3 -> 241.6666667 | K47: 241.6666667 | L47: 241.6666667 | M47: 0 | N47: 0 | O47: 0 | P47: 0 | Q47: 0 | R47: 0 | S47: 0 | T47: 0 | U47: 0 | V47: 0 | W47: 0 | X47: 0 | Y47: 0 | Z47: 0 | AA47: 0 | AB47: 0 | AC47: 0 | AD47: 0 | AE47: 0 | AF47: 0 | AG47: 0 | AH47: 0 | AI47: =$H$47/$G$47*AI3 -> 0 | AJ47: 0 | AK47: 0 | AL47: 0 | AM47: 0 | AN47: 0 | AO47: 0 | AP47: 0 | AQ47: 0 | AR47: 0 | AS47: 0 | AT47: 0 | AU47: 0 | AV47: 0
B49: Pre-tax Project IRR | F49: =IRR(J49:AH49) -> 0.1100018411 | J49: =J45-J47 -> -241.6666667 | K49: =K45-K47 -> -241.6666667 | L49: -241.6666667 | M49: 100 | N49: 105.7371263 | O49: 111.8033989 | P49: 118.2177011 | Q49: 125 | R49: 117.2793196 | S49: 110.0355105 | T49: 103.2391185 | U49: 96.86250859 | V49: 90.87975285 | W49: 85.26652466 | X49: 80 | Y49: 80 | Z49: 80 | AA49: 80 | AB49: 80 | AC49: 80 | AD49: 80 | AE49: 80 | AF49: 80 | AG49: 0 | AH49: 0 | AI49: =AI45-AI47 -> 0 | AJ49: 0 | AK49: 0 | AL49: 0 | AM49: 0 | AN49: 0 | AO49: 0 | AP49: 0 | AQ49: 0 | AR49: 0 | AS49: 0 | AT49: 0 | AU49: 0 | AV49: 0
B51: Accumulated Plant | J51: =I51+J47 -> 241.6666667 | K51: =J51+K47 -> 483.3333333 | L51: 725 | M51: 725 | N51: 725 | O51: 725 | P51: 725 | Q51: 725 | R51: 725 | S51: 725 | T51: 725 | U51: 725 | V51: 725 | W51: 725 | X51: 725 | Y51: 725 | Z51: 725 | AA51: 725 | AB51: 725 | AC51: 725 | AD51: 725 | AE51: 725 | AF51: 725 | AG51: 725 | AH51: 725 | AI51: =AH51+AI47 -> 725 | AJ51: =AI51+AJ47 -> 725 | AK51: =AJ51+AK47 -> 725 | AL51: =AK51+AL47 -> 725 | AM51: =AL51+AM47 -> 725 | AN51: =AM51+AN47 -> 725 | AO51: =AN51+AO47 -> 725 | AP51: =AO51+AP47 -> 725 | AQ51: =AP51+AQ47 -> 725 | AR51: =AQ51+AR47 -> 725 | AS51: =AR51+AS47 -> 725 | AT51: =AS51+AT47 -> 725 | AU51: =AT51+AU47 -> 725 | AV51: =AU51+AV47 -> 725
B52: Accumulated Depreciation | J52: =I52+J54 -> 0 | K52: =J52+K54 -> 0 | L52: 0 | M52: 36.25 | N52: 72.5 | O52: 108.75 | P52: 145 | Q52: 181.25 | R52: 217.5 | S52: 253.75 | T52: 290 | U52: 326.25 | V52: 362.5 | W52: 398.75 | X52: 435 | Y52: 471.25 | Z52: 507.5 | AA52: 543.75 | AB52: 580 | AC52: 616.25 | AD52: 652.5 | AE52: 688.75 | AF52: 725 | AG52: 725 | AH52: 725 | AI52: =AH52+AI54 -> 725 | AJ52: =AI52+AJ54 -> 725 | AK52: =AJ52+AK54 -> 725 | AL52: =AK52+AL54 -> 725 | AM52: =AL52+AM54 -> 725 | AN52: =AM52+AN54 -> 725 | AO52: =AN52+AO54 -> 725 | AP52: =AO52+AP54 -> 725 | AQ52: =AP52+AQ54 -> 725 | AR52: =AQ52+AR54 -> 725 | AS52: =AR52+AS54 -> 725 | AT52: =AS52+AT54 -> 725 | AU52: =AT52+AU54 -> 725 | AV52: =AU52+AV54 -> 725
B53: Net Plant | J53: =J51-J52 -> 241.6666667 | K53: =K51-K52 -> 483.3333333 | L53: 725 | M53: 688.75 | N53: 652.5 | O53: 616.25 | P53: 580 | Q53: 543.75 | R53: 507.5 | S53: 471.25 | T53: 435 | U53: 398.75 | V53: 362.5 | W53: 326.25 | X53: 290 | Y53: 253.75 | Z53: 217.5 | AA53: 181.25 | AB53: 145 | AC53: 108.75 | AD53: 72.5 | AE53: 36.25 | AF53: 0 | AG53: 0 | AH53: 0 | AI53: =AI51-AI52 -> 0 | AJ53: 0 | AK53: 0 | AL53: 0 | AM53: 0 | AN53: 0 | AO53: 0 | AP53: 0 | AQ53: 0 | AR53: 0 | AS53: 0 | AT53: 0 | AU53: 0 | AV53: 0
B54: Depreciation | G54: =F11 -> 20 | J54: =J51/$G$54*J4 -> 0 | K54: =K51/$G$54*K4 -> 0 | L54: 0 | M54: 36.25 | N54: 36.25 | O54: 36.25 | P54: 36.25 | Q54: 36.25 | R54: 36.25 | S54: 36.25 | T54: 36.25 | U54: 36.25 | V54: 36.25 | W54: 36.25 | X54: 36.25 | Y54: 36.25 | Z54: 36.25 | AA54: 36.25 | AB54: 36.25 | AC54: 36.25 | AD54: 36.25 | AE54: 36.25 | AF54: 36.25 | AG54: 0 | AH54: 0 | AI54: =AI51/$G$54*AI4 -> 0 | AJ54: 0 | AK54: 0 | AL54: 0 | AM54: 0 | AN54: 0 | AO54: 0 | AP54: 0 | AQ54: 0 | AR54: 0 | AS54: 0 | AT54: 0 | AU54: 0 | AV54: 0
B56: EBIT | J56: =J45-J54 -> 0 | K56: =K45-K54 -> 0 | L56: 0 | M56: 63.75 | N56: 69.48712634 | O56: 75.55339887 | P56: 81.96770113 | Q56: 88.75 | R56: 81.02931964 | S56: 73.78551051 | T56: 66.98911847 | U56: 60.61250859 | V56: 54.62975285 | W56: 49.01652466 | X56: 43.75 | Y56: 43.75 | Z56: 43.75 | AA56: 43.75 | AB56: 43.75 | AC56: 43.75 | AD56: 43.75 | AE56: 43.75 | AF56: 43.75 | AG56: 0 | AH56: 0 | AI56: =AI45-AI54 -> 0 | AJ56: 0 | AK56: 0 | AL56: 0 | AM56: 0 | AN56: 0 | AO56: 0 | AP56: 0 | AQ56: 0 | AR56: 0 | AS56: 0 | AT56: 0 | AU56: 0 | AV56: 0
B57: Taxes on EBIT | G57: =F21 -> 0.21 | J57: =J56*$G$57 -> 0 | K57: =K56*$G$57 -> 0 | L57: 0 | M57: 13.3875 | N57: 14.59229653 | O57: 15.86621376 | P57: 17.21321724 | Q57: 18.6375 | R57: 17.01615712 | S57: 15.49495721 | T57: 14.06771488 | U57: 12.7286268 | V57: 11.4722481 | W57: 10.29347018 | X57: 9.1875 | Y57: 9.1875 | Z57: 9.1875 | AA57: 9.1875 | AB57: 9.1875 | AC57: 9.1875 | AD57: 9.1875 | AE57: 9.1875 | AF57: 9.1875 | AG57: 0 | AH57: 0 | AI57: =AI56*$G$57 -> 0 | AJ57: 0 | AK57: 0 | AL57: 0 | AM57: 0 | AN57: 0 | AO57: 0 | AP57: 0 | AQ57: 0 | AR57: 0 | AS57: 0 | AT57: 0 | AU57: 0 | AV57: 0
B58: Post-tax Project IRR | F58: =IRR(J58:AH58) -> 0.09014026807 | J58: =J49-J57 -> -241.6666667 | K58: =K49-K57 -> -241.6666667 | L58: -241.6666667 | M58: 86.6125 | N58: 91.14482981 | O58: 95.93718511 | P58: 101.0044839 | Q58: 106.3625 | R58: 100.2631625 | S58: 94.54055331 | T58: 89.17140359 | U58: 84.13388179 | V58: 79.40750475 | W58: 74.97305448 | X58: 70.8125 | Y58: 70.8125 | Z58: 70.8125 | AA58: 70.8125 | AB58: 70.8125 | AC58: 70.8125 | AD58: 70.8125 | AE58: 70.8125 | AF58: 70.8125 | AG58: 0 | AH58: 0 | AI58: =AI49-AI57 -> 0 | AJ58: 0 | AK58: 0 | AL58: 0 | AM58: 0 | AN58: 0 | AO58: 0 | AP58: 0 | AQ58: 0 | AR58: 0 | AS58: 0 | AT58: 0 | AU58: 0 | AV58: 0
A60: Sources and Uses
B61: Uses
C62: EPC | I62: =SUM(J47:AH47) -> 725
C63: IDC | J63: =SUM(J93:AH93) -> 0 | K63: 14 | L63: =K63-J63 -> 14
C64: Up-front Fee | J64: =SUM(J131:AV131) -> 0
C65: Commitment Fee | J65: =SUM(J133:AV133) -> 0
C66: DSRA | I66: =SUM(J96:AH96) -> 0
D67: Total | I67: =SUM(I62:I66) -> 725
B69: Sources
C70: Debt | I70: =E90 -> 574.2526502
C71: Equity | I71: =I67-I70 -> 150.7473498
D72: Total | I72: =SUM(I70:I71) -> 725
C74: Less Interest and Fees Capitalised During Construction
C75: Cash Funding
C77: Equity Up-front | G77: =F28 -> 0.72 | I77: =G77*I71 -> 108.5380918
C78: Remaining Equity Pro-Rata | I78: =I71-I77 -> 42.20925794
C79: Total Left Over for Pro-Rata
C80: Equity as Percent of Left Over Pro-Rata | I80: =IFERROR(I78/I79,0) -> 0
C81: Debt as Percent of Left Over Pro-Rata | I81: =IF(I79,(I70-I74)/I79) -> FALSE
A83: Sculpting
C84: Repayment Switch | G84: =F31 -> 2034-01-01 | J84: =AND(NOT(J3),J2<$G$84) -> FALSE | K84: =AND(NOT(K3),K2<$G$84) -> FALSE | L84: FALSE | M84: =AND(NOT(M3),M2<$G$84) -> TRUE | N84: TRUE | O84: TRUE | P84: TRUE | Q84: TRUE | R84: TRUE | S84: TRUE | T84: TRUE | U84: TRUE | V84: TRUE | W84: TRUE | X84: TRUE | Y84: FALSE | Z84: FALSE | AA84: FALSE | AB84: FALSE | AC84: FALSE | AD84: FALSE | AE84: FALSE | AF84: FALSE | AG84: FALSE | AH84: FALSE | AI84: =AND(NOT(AI3),AI2<$G$84) -> FALSE | AJ84: FALSE | AK84: FALSE | AL84: FALSE | AM84: FALSE | AN84: FALSE | AO84: FALSE | AP84: FALSE | AQ84: FALSE | AR84: FALSE | AS84: FALSE | AT84: FALSE | AU84: FALSE | AV84: FALSE
C85: CFADS | J85: =J84*J172 -> 0 | K85: =K84*K172 -> 0 | L85: 0 | M85: 100 | N85: 105.7371263 | O85: 111.8033989 | P85: 118.2177011 | Q85: 125 | R85: 117.2793196 | S85: 110.0355105 | T85: 103.2391185 | U85: 96.86250859 | V85: 90.87975285 | W85: 85.26652466 | X85: 80 | Y85: 0 | Z85: 0 | AA85: 0 | AB85: 0 | AC85: 0 | AD85: 0 | AE85: 0 | AF85: 0 | AG85: 0 | AH85: 0 | AI85: =AI84*AI172 -> 0 | AJ85: 0 | AK85: 0 | AL85: 0 | AM85: 0 | AN85: 0 | AO85: 0 | AP85: 0 | AQ85: 0 | AR85: 0 | AS85: 0 | AT85: 0 | AU85: 0 | AV85: 0
C86: Target DSCR | G86: =F26 -> 1.7 | J86: =$G$86 -> 1.7 | K86: =$G$86 -> 1.7 | L86: 1.7 | M86: 1.7 | N86: 1.7 | O86: 1.7 | P86: 1.7 | Q86: 1.7 | R86: 1.7 | S86: 1.7 | T86: 1.7 | U86: 1.7 | V86: 1.7 | W86: 1.7 | X86: 1.7 | Y86: 1.7 | Z86: 1.7 | AA86: 1.7 | AB86: 1.7 | AC86: 1.7 | AD86: 1.7 | AE86: 1.7 | AF86: 1.7 | AG86: 1.7 | AH86: 1.7 | AI86: 1.7 | AJ86: 1.7 | AK86: 1.7 | AL86: 1.7 | AM86: 1.7 | AN86: 1.7 | AO86: 1.7 | AP86: 1.7 | AQ86: 1.7 | AR86: 1.7 | AS86: 1.7 | AT86: 1.7 | AU86: 1.7 | AV86: 1.7
C87: Total Debt Service | J87: =J85/J86 -> 0 | K87: =K85/K86 -> 0 | L87: 0 | M87: 58.82352941 | N87: 62.19830961 | O87: 65.76670522 | P87: 69.53982419 | Q87: 73.52941176 | R87: 68.98783508 | S87: 64.72677089 | T87: 60.72889322 | U87: 56.97794623 | V87: 53.45867815 | W87: 50.15677921 | X87: 47.05882353 | Y87: 0 | Z87: 0 | AA87: 0 | AB87: 0 | AC87: 0 | AD87: 0 | AE87: 0 | AF87: 0 | AG87: 0 | AH87: 0 | AI87: =AI85/AI86 -> 0 | AJ87: 0 | AK87: 0 | AL87: 0 | AM87: 0 | AN87: 0 | AO87: 0 | AP87: 0 | AQ87: 0 | AR87: 0 | AS87: 0 | AT87: 0 | AU87: 0 | AV87: 0
C88: Interest Rate | J88: =LOOKUP(J1,33:33,34:34) -> 0.035 | K88: =LOOKUP(K1,33:33,34:34) -> 0.035 | L88: 0.035 | M88: 0.04 | N88: 0.04 | O88: 0.04 | P88: 0.042 | Q88: 0.042 | R88: 0.042 | S88: 0.042 | T88: 0.044 | U88: 0.044 | V88: 0.044 | W88: 0.044 | X88: 0.044 | Y88: 0.044 | Z88: 0.044 | AA88: 0.044 | AB88: 0.044 | AC88: 0.044 | AD88: 0.044 | AE88: 0.044 | AF88: 0.044 | AG88: 0.044 | AH88: 0.044 | AI88: =LOOKUP(AI1,33:33,34:34) -> 0.044 | AJ88: 0.044 | AK88: 0.044 | AL88: 0.044 | AM88: 0.044 | AN88: 0.044 | AO88: 0.044 | AP88: 0.044 | AQ88: 0.044 | AR88: 0.044 | AS88: 0.044 | AT88: 0.044 | AU88: 0.044 | AV88: 0.044
C89: Interest Rate Index | I89: 1 | J89: =I89*(1+J88*J4) -> 1 | K89: =J89*(1+K88*K4) -> 1 | L89: 1 | M89: 1.04 | N89: 1.0816 | O89: 1.124864 | P89: 1.172108288 | Q89: 1.221336836 | R89: 1.272632983 | S89: 1.326083569 | T89: 1.384431246 | U89: 1.44534622 | V89: 1.508941454 | W89: 1.575334878 | X89: 1.644649613 | Y89: 1.717014196 | Z89: 1.79256282 | AA89: 1.871435584 | AB89: 1.95377875 | AC89: 2.039745015 | AD89: 2.129493796 | AE89: 2.223191523 | AF89: 2.32101195 | AG89: 2.32101195 | AH89: 2.32101195 | AI89: =AH89*(1+AI88*AI4) -> 2.32101195 | AJ89: =AI89*(1+AJ88*AJ4) -> 2.32101195 | AK89: =AJ89*(1+AK88*AK4) -> 2.32101195 | AL89: =AK89*(1+AL88*AL4) -> 2.32101195 | AM89: =AL89*(1+AM88*AM4) -> 2.32101195 | AN89: =AM89*(1+AN88*AN4) -> 2.32101195 | AO89: =AN89*(1+AO88*AO4) -> 2.32101195 | AP89: =AO89*(1+AP88*AP4) -> 2.32101195 | AQ89: =AP89*(1+AQ88*AQ4) -> 2.32101195 | AR89: =AQ89*(1+AR88*AR4) -> 2.32101195 | AS89: =AR89*(1+AS88*AS4) -> 2.32101195 | AT89: =AS89*(1+AT88*AT4) -> 2.32101195 | AU89: =AT89*(1+AU88*AU4) -> 2.32101195 | AV89: =AU89*(1+AV88*AV4) -> 2.32101195
C90: PV of Debt Service | E90: =SUMPRODUCT(J87:AH87/J89:AH89) -> 574.2526502
A91: Funding
C92: EPC | J92: =J47 -> 241.6666667 | K92: 241.6666667 | L92: 241.6666667 | M92: 0 | N92: 0 | O92: 0 | P92: 0 | Q92: 0 | R92: 0 | S92: 0 | T92: 0 | U92: 0 | V92: 0 | W92: 0 | X92: 0 | Y92: 0 | Z92: 0 | AA92: 0 | AB92: 0 | AC92: 0 | AD92: 0 | AE92: 0 | AF92: 0 | AG92: 0 | AH92: 0 | AI92: =AI47 -> 0 | AJ92: 0 | AK92: 0 | AL92: 0 | AM92: 0 | AN92: 0 | AO92: 0 | AP92: 0 | AQ92: 0 | AR92: 0 | AS92: 0 | AT92: 0 | AU92: 0 | AV92: 0
C93: IDC | J93: =J129 -> 0 | K93: =K129 -> 0 | L93: =L129 -> 0 | M93: 0 | N93: 0 | O93: 0 | P93: 0 | Q93: 0 | R93: 0 | S93: 0 | T93: 0 | U93: 0 | V93: 0 | W93: 0 | X93: 0 | Y93: 0 | Z93: 0 | AA93: 0 | AB93: 0 | AC93: 0 | AD93: 0 | AE93: 0 | AF93: 0 | AG93: 0 | AH93: 0 | AI93: =AI129 -> 0 | AJ93: 0 | AK93: 0 | AL93: 0 | AM93: 0 | AN93: 0 | AO93: 0 | AP93: 0 | AQ93: 0 | AR93: 0 | AS93: 0 | AT93: 0 | AU93: 0 | AV93: 0
C94: Up-front Fee
C95: Commitment Fee
C96: DSRA
C97: Less: Capitalised Interest
D98: Total | J98: =SUM(J92:J96)-J97 -> 241.6666667 | K98: =SUM(K92:K96)-K97 -> 241.6666667 | L98: 241.6666667 | M98: 0 | N98: 0 | O98: 0 | P98: 0 | Q98: 0 | R98: 0 | S98: 0 | T98: 0 | U98: 0 | V98: 0 | W98: 0 | X98: 0 | Y98: 0 | Z98: 0 | AA98: 0 | AB98: 0 | AC98: 0 | AD98: 0 | AE98: 0 | AF98: 0 | AG98: 0 | AH98: 0 | AI98: 0 | AJ98: 0 | AK98: 0 | AL98: 0 | AM98: 0 | AN98: 0 | AO98: 0 | AP98: 0 | AQ98: 0 | AR98: 0 | AS98: 0 | AT98: 0 | AU98: 0 | AV98: 0
C100: Equity Up-Front | G100: =G77 -> 0.72 | H100: =I71 -> 150.7473498 | J100: =$H$100*$G$100 -> 108.5380918 | K100: =$H$100*$G$100 -> 108.5380918 | L100: 108.5380918 | M100: 108.5380918 | N100: 108.5380918 | O100: 108.5380918 | P100: 108.5380918 | Q100: 108.5380918 | R100: 108.5380918 | S100: 108.5380918 | T100: 108.5380918 | U100: 108.5380918 | V100: 108.5380918 | W100: 108.5380918 | X100: 108.5380918 | Y100: 108.5380918 | Z100: 108.5380918 | AA100: 108.5380918 | AB100: 108.5380918 | AC100: 108.5380918 | AD100: 108.5380918 | AE100: 108.5380918 | AF100: 108.5380918 | AG100: 108.5380918 | AH100: 108.5380918 | AI100: 108.5380918 | AJ100: 108.5380918 | AK100: 108.5380918 | AL100: 108.5380918 | AM100: 108.5380918 | AN100: 108.5380918 | AO100: 108.5380918 | AP100: 108.5380918 | AQ100: 108.5380918 | AR100: 108.5380918 | AS100: 108.5380918 | AT100: 108.5380918 | AU100: 108.5380918 | AV100: 108.5380918
C101: Less: Opening Balance | J101: =J104 -> 0 | K101: =K104 -> 108.5380918 | L101: 108.5380918 | M101: 108.5380918 | N101: 108.5380918 | O101: 108.5380918 | P101: 108.5380918 | Q101: 108.5380918 | R101: 108.5380918 | S101: 108.5380918 | T101: 108.5380918 | U101: 108.5380918 | V101: 108.5380918 | W101: 108.5380918 | X101: 108.5380918 | Y101: 108.5380918 | Z101: 108.5380918 | AA101: 108.5380918 | AB101: 108.5380918 | AC101: 108.5380918 | AD101: 108.5380918 | AE101: 108.5380918 | AF101: 108.5380918 | AG101: 108.5380918 | AH101: 108.5380918 | AI101: =AI104 -> 108.5380918 | AJ101: 108.5380918 | AK101: 108.5380918 | AL101: 108.5380918 | AM101: 108.5380918 | AN101: 108.5380918 | AO101: 108.5380918 | AP101: 108.5380918 | AQ101: 108.5380918 | AR101: 108.5380918 | AS101: 108.5380918 | AT101: 108.5380918 | AU101: 108.5380918 | AV101: 108.5380918
C102: Remaining Equity Funding | J102: =J100-J101 -> 108.5380918 | K102: =K100-K101 -> 0 | L102: 0 | M102: 0 | N102: 0 | O102: 0 | P102: 0 | Q102: 0 | R102: 0 | S102: 0 | T102: 0 | U102: 0 | V102: 0 | W102: 0 | X102: 0 | Y102: 0 | Z102: 0 | AA102: 0 | AB102: 0 | AC102: 0 | AD102: 0 | AE102: 0 | AF102: 0 | AG102: 0 | AH102: 0 | AI102: =AI100-AI101 -> 0 | AJ102: 0 | AK102: 0 | AL102: 0 | AM102: 0 | AN102: 0 | AO102: 0 | AP102: 0 | AQ102: 0 | AR102: 0 | AS102: 0 | AT102: 0 | AU102: 0 | AV102: 0
C104: Opening Balance | J104: =I106 -> 0 | K104: =J106 -> 108.5380918 | L104: 108.5380918 | M104: 108.5380918 | N104: 108.5380918 | O104: 108.5380918 | P104: 108.5380918 | Q104: 108.5380918 | R104: 108.5380918 | S104: 108.5380918 | T104: 108.5380918 | U104: 108.5380918 | V104: 108.5380918 | W104: 108.5380918 | X104: 108.5380918 | Y104: 108.5380918 | Z104: 108.5380918 | AA104: 108.5380918 | AB104: 108.5380918 | AC104: 108.5380918 | AD104: 108.5380918 | AE104: 108.5380918 | AF104: 108.5380918 | AG104: 108.5380918 | AH104: 108.5380918 | AI104: =AH106 -> 108.5380918 | AJ104: =AI106 -> 108.5380918 | AK104: =AJ106 -> 108.5380918 | AL104: =AK106 -> 108.5380918 | AM104: =AL106 -> 108.5380918 | AN104: =AM106 -> 108.5380918 | AO104: =AN106 -> 108.5380918 | AP104: =AO106 -> 108.5380918 | AQ104: =AP106 -> 108.5380918 | AR104: =AQ106 -> 108.5380918 | AS104: =AR106 -> 108.5380918 | AT104: =AS106 -> 108.5380918 | AU104: =AT106 -> 108.5380918 | AV104: =AU106 -> 108.5380918
C105: Add: Equity Funding | J105: =MIN(J102,J98) -> 108.5380918 | K105: =MIN(K102,K98) -> 0 | L105: 0 | M105: 0 | N105: 0 | O105: 0 | P105: 0 | Q105: 0 | R105: 0 | S105: 0 | T105: 0 | U105: 0 | V105: 0 | W105: 0 | X105: 0 | Y105: 0 | Z105: 0 | AA105: 0 | AB105: 0 | AC105: 0 | AD105: 0 | AE105: 0 | AF105: 0 | AG105: 0 | AH105: 0 | AI105: =MIN(AI102,AI98) -> 0 | AJ105: 0 | AK105: 0 | AL105: 0 | AM105: 0 | AN105: 0 | AO105: 0 | AP105: 0 | AQ105: 0 | AR105: 0 | AS105: 0 | AT105: 0 | AU105: 0 | AV105: 0
C106: Closing Balance | J106: =J104+J105 -> 108.5380918 | K106: =K104+K105 -> 108.5380918 | L106: 108.5380918 | M106: 108.5380918 | N106: 108.5380918 | O106: 108.5380918 | P106: 108.5380918 | Q106: 108.5380918 | R106: 108.5380918 | S106: 108.5380918 | T106: 108.5380918 | U106: 108.5380918 | V106: 108.5380918 | W106: 108.5380918 | X106: 108.5380918 | Y106: 108.5380918 | Z106: 108.5380918 | AA106: 108.5380918 | AB106: 108.5380918 | AC106: 108.5380918 | AD106: 108.5380918 | AE106: 108.5380918 | AF106: 108.5380918 | AG106: 108.5380918 | AH106: 108.5380918 | AI106: =AI104+AI105 -> 108.5380918 | AJ106: 108.5380918 | AK106: 108.5380918 | AL106: 108.5380918 | AM106: 108.5380918 | AN106: 108.5380918 | AO106: 108.5380918 | AP106: 108.5380918 | AQ106: 108.5380918 | AR106: 108.5380918 | AS106: 108.5380918 | AT106: 108.5380918 | AU106: 108.5380918 | AV106: 108.5380918
C108: Left-Over for Pro-Rata | J108: =J98-J105 -> 133.1285748 | K108: =K98-K105 -> 241.6666667 | L108: 241.6666667 | M108: 0 | N108: 0 | O108: 0 | P108: 0 | Q108: 0 | R108: 0 | S108: 0 | T108: 0 | U108: 0 | V108: 0 | W108: 0 | X108: 0 | Y108: 0 | Z108: 0 | AA108: 0 | AB108: 0 | AC108: 0 | AD108: 0 | AE108: 0 | AF108: 0 | AG108: 0 | AH108: 0 | AI108: =AI98-AI105 -> 0 | AJ108: 0 | AK108: 0 | AL108: 0 | AM108: 0 | AN108: 0 | AO108: 0 | AP108: 0 | AQ108: 0 | AR108: 0 | AS108: 0 | AT108: 0 | AU108: 0 | AV108: 0
C110: Pro-Rata Equity | H110: =I80 -> 0 | J110: =$H$110*J108 -> 0 | K110: =$H$110*K108 -> 0 | L110: 0 | M110: 0 | N110: 0 | O110: 0 | P110: 0 | Q110: 0 | R110: 0 | S110: 0 | T110: 0 | U110: 0 | V110: 0 | W110: 0 | X110: 0 | Y110: 0 | Z110: 0 | AA110: 0 | AB110: 0 | AC110: 0 | AD110: 0 | AE110: 0 | AF110: 0 | AG110: 0 | AH110: 0 | AI110: =$H$110*AI108 -> 0 | AJ110: 0 | AK110: 0 | AL110: 0 | AM110: 0 | AN110: 0 | AO110: 0 | AP110: 0 | AQ110: 0 | AR110: 0 | AS110: 0 | AT110: 0 | AU110: 0 | AV110: 0
C111: Pro-Rata Debt | H111: =I81 -> FALSE | J111: =J108*$H$111 -> 0 | K111: =K108*$H$111 -> 0 | L111: 0 | M111: 0 | N111: 0 | O111: 0 | P111: 0 | Q111: 0 | R111: 0 | S111: 0 | T111: 0 | U111: 0 | V111: 0 | W111: 0 | X111: 0 | Y111: 0 | Z111: 0 | AA111: 0 | AB111: 0 | AC111: 0 | AD111: 0 | AE111: 0 | AF111: 0 | AG111: 0 | AH111: 0 | AI111: =AI108*$H$111 -> 0 | AJ111: 0 | AK111: 0 | AL111: 0 | AM111: 0 | AN111: 0 | AO111: 0 | AP111: 0 | AQ111: 0 | AR111: 0 | AS111: 0 | AT111: 0 | AU111: 0 | AV111: 0
B113: Period by Period Sources
C114: Debt Funding | J114: =J111 -> 0 | K114: =K111 -> 0 | L114: 0 | M114: 0 | N114: 0 | O114: 0 | P114: 0 | Q114: 0 | R114: 0 | S114: 0 | T114: 0 | U114: 0 | V114: 0 | W114: 0 | X114: 0 | Y114: 0 | Z114: 0 | AA114: 0 | AB114: 0 | AC114: 0 | AD114: 0 | AE114: 0 | AF114: 0 | AG114: 0 | AH114: 0 | AI114: =AI111 -> 0 | AJ114: 0 | AK114: 0 | AL114: 0 | AM114: 0 | AN114: 0 | AO114: 0 | AP114: 0 | AQ114: 0 | AR114: 0 | AS114: 0 | AT114: 0 | AU114: 0 | AV114: 0
C115: Equity Funding | J115: =J110+J105 -> 108.5380918 | K115: =K110+K105 -> 0 | L115: 0 | M115: 0 | N115: 0 | O115: 0 | P115: 0 | Q115: 0 | R115: 0 | S115: 0 | T115: 0 | U115: 0 | V115: 0 | W115: 0 | X115: 0 | Y115: 0 | Z115: 0 | AA115: 0 | AB115: 0 | AC115: 0 | AD115: 0 | AE115: 0 | AF115: 0 | AG115: 0 | AH115: 0 | AI115: =AI110+AI105 -> 0 | AJ115: 0 | AK115: 0 | AL115: 0 | AM115: 0 | AN115: 0 | AO115: 0 | AP115: 0 | AQ115: 0 | AR115: 0 | AS115: 0 | AT115: 0 | AU115: 0 | AV115: 0
D116: Total Funding | J116: =SUM(J114:J115) -> 108.5380918 | K116: =SUM(K114:K115) -> 0 | L116: 0 | M116: 0 | N116: 0 | O116: 0 | P116: 0 | Q116: 0 | R116: 0 | S116: 0 | T116: 0 | U116: 0 | V116: 0 | W116: 0 | X116: 0 | Y116: 0 | Z116: 0 | AA116: 0 | AB116: 0 | AC116: 0 | AD116: 0 | AE116: 0 | AF116: 0 | AG116: 0 | AH116: 0 | AI116: =SUM(AI114:AI115) -> 0 | AJ116: 0 | AK116: 0 | AL116: 0 | AM116: 0 | AN116: 0 | AO116: 0 | AP116: 0 | AQ116: 0 | AR116: 0 | AS116: 0 | AT116: 0 | AU116: 0 | AV116: 0
A119: Debt Balance
C120: Opening Balance | J120: =I124 -> 0 | K120: 0 | L120: 0 | M120: 0 | N120: -58.82352941 | O120: -123.3747802 | P120: -194.0764766 | Q120: -271.7675128 | R120: -356.7111601 | S120: -440.680864 | T120: -523.9162311 | U120: -607.6974385 | V120: -691.414072 | W120: -775.2949694 | X120: -859.5647272 | Y120: -944.4443987 | Z120: -985.9999523 | AA120: -1029.38395 | AB120: -1074.676844 | AC120: -1121.962625 | AD120: -1171.328981 | AE120: -1222.867456 | AF120: -1276.673624 | AG120: -1332.847263 | AH120: -1332.847263 | AI120: =AH124 -> -1332.847263 | AJ120: =AI124 -> -1332.847263 | AK120: =AJ124 -> -1332.847263 | AL120: =AK124 -> -1332.847263 | AM120: =AL124 -> -1332.847263 | AN120: =AM124 -> -1332.847263 | AO120: =AN124 -> -1332.847263 | AP120: =AO124 -> -1332.847263 | AQ120: =AP124 -> -1332.847263 | AR120: =AQ124 -> -1332.847263 | AS120: =AR124 -> -1332.847263 | AT120: =AS124 -> -1332.847263 | AU120: =AT124 -> -1332.847263 | AV120: =AU124 -> -1332.847263
C121: Add: Cash Funding | J121: =J114 -> 0 | K121: 0 | L121: 0 | M121: 0 | N121: 0 | O121: 0 | P121: 0 | Q121: 0 | R121: 0 | S121: 0 | T121: 0 | U121: 0 | V121: 0 | W121: 0 | X121: 0 | Y121: 0 | Z121: 0 | AA121: 0 | AB121: 0 | AC121: 0 | AD121: 0 | AE121: 0 | AF121: 0 | AG121: 0 | AH121: 0 | AI121: =AI114 -> 0 | AJ121: 0 | AK121: 0 | AL121: 0 | AM121: 0 | AN121: 0 | AO121: 0 | AP121: 0 | AQ121: 0 | AR121: 0 | AS121: 0 | AT121: 0 | AU121: 0 | AV121: 0
C122: Add: Interest Capitalised | H122: =F38 -> TRUE
C123: Less: Repayment | J123: =J87-J128 -> 0 | K123: 0 | L123: 0 | M123: 58.82352941 | N123: 64.55125079 | O123: 70.70169643 | P123: 77.69103621 | Q123: 84.9436473 | R123: 83.96970381 | S123: 83.23536718 | T123: 83.78120739 | U123: 83.71663353 | V123: 83.88089732 | W123: 84.26975786 | X123: 84.87967153 | Y123: 41.55555354 | Z123: 43.3839979 | AA123: 45.29289381 | AB123: 47.28578114 | AC123: 49.36635551 | AD123: 51.53847515 | AE123: 53.80616805 | AF123: 56.17363945 | AG123: 0 | AH123: 0 | AI123: =AI87-AI128 -> 0 | AJ123: 0 | AK123: 0 | AL123: 0 | AM123: 0 | AN123: 0 | AO123: 0 | AP123: 0 | AQ123: 0 | AR123: 0 | AS123: 0 | AT123: 0 | AU123: 0 | AV123: 0
C124: Closing Balance | J124: =J120+J121-J123 -> 0 | K124: =K120+K121-K123 -> 0 | L124: 0 | M124: -58.82352941 | N124: -123.3747802 | O124: -194.0764766 | P124: -271.7675128 | Q124: -356.7111601 | R124: -440.680864 | S124: -523.9162311 | T124: -607.6974385 | U124: -691.414072 | V124: -775.2949694 | W124: -859.5647272 | X124: -944.4443987 | Y124: -985.9999523 | Z124: -1029.38395 | AA124: -1074.676844 | AB124: -1121.962625 | AC124: -1171.328981 | AD124: -1222.867456 | AE124: -1276.673624 | AF124: -1332.847263 | AG124: -1332.847263 | AH124: -1332.847263 | AI124: =AI120+AI121-AI123 -> -1332.847263 | AJ124: -1332.847263 | AK124: -1332.847263 | AL124: -1332.847263 | AM124: -1332.847263 | AN124: -1332.847263 | AO124: -1332.847263 | AP124: -1332.847263 | AQ124: -1332.847263 | AR124: -1332.847263 | AS124: -1332.847263 | AT124: -1332.847263 | AU124: -1332.847263 | AV124: -1332.847263
C125: Interest Rate | J125: =J88 -> 0.035 | K125: 0.035 | L125: 0.035 | M125: 0.04 | N125: 0.04 | O125: 0.04 | P125: 0.042 | Q125: 0.042 | R125: 0.042 | S125: 0.042 | T125: 0.044 | U125: 0.044 | V125: 0.044 | W125: 0.044 | X125: 0.044 | Y125: 0.044 | Z125: 0.044 | AA125: 0.044 | AB125: 0.044 | AC125: 0.044 | AD125: 0.044 | AE125: 0.044 | AF125: 0.044 | AG125: 0.044 | AH125: 0.044 | AI125: =AI88 -> 0.044 | AJ125: 0.044 | AK125: 0.044 | AL125: 0.044 | AM125: 0.044 | AN125: 0.044 | AO125: 0.044 | AP125: 0.044 | AQ125: 0.044 | AR125: 0.044 | AS125: 0.044 | AT125: 0.044 | AU125: 0.044 | AV125: 0.044
C127: Interest Cost | J127: =J125*J120 -> 0 | K127: 0 | L127: 0 | M127: 0 | N127: -2.352941176 | O127: -4.934991208 | P127: -8.151212019 | Q127: -11.41423554 | R127: -14.98186873 | S127: -18.50859629 | T127: -23.05231417 | U127: -26.73868729 | V127: -30.42221917 | W127: -34.11297865 | X127: -37.820848 | Y127: -41.55555354 | Z127: -43.3839979 | AA127: -45.29289381 | AB127: -47.28578114 | AC127: -49.36635551 | AD127: -51.53847515 | AE127: -53.80616805 | AF127: -56.17363945 | AG127: -58.64527959 | AH127: -58.64527959 | AI127: =AI125*AI120 -> -58.64527959 | AJ127: -58.64527959 | AK127: -58.64527959 | AL127: -58.64527959 | AM127: -58.64527959 | AN127: -58.64527959 | AO127: -58.64527959 | AP127: -58.64527959 | AQ127: -58.64527959 | AR127: -58.64527959 | AS127: -58.64527959 | AT127: -58.64527959 | AU127: -58.64527959 | AV127: -58.64527959
C128: Interest Expense | J128: =J127*J4 -> 0 | K128: 0 | L128: 0 | M128: 0 | N128: -2.352941176 | O128: -4.934991208 | P128: -8.151212019 | Q128: -11.41423554 | R128: -14.98186873 | S128: -18.50859629 | T128: -23.05231417 | U128: -26.73868729 | V128: -30.42221917 | W128: -34.11297865 | X128: -37.820848 | Y128: -41.55555354 | Z128: -43.3839979 | AA128: -45.29289381 | AB128: -47.28578114 | AC128: -49.36635551 | AD128: -51.53847515 | AE128: -53.80616805 | AF128: -56.17363945 | AG128: 0 | AH128: 0 | AI128: =AI127*AI4 -> 0 | AJ128: 0 | AK128: 0 | AL128: 0 | AM128: 0 | AN128: 0 | AO128: 0 | AP128: 0 | AQ128: 0 | AR128: 0 | AS128: 0 | AT128: 0 | AU128: 0 | AV128: 0
C129: Interest During Construction | J129: =J127*J3 -> 0 | K129: 0 | L129: 0 | M129: 0 | N129: 0 | O129: 0 | P129: 0 | Q129: 0 | R129: 0 | S129: 0 | T129: 0 | U129: 0 | V129: 0 | W129: 0 | X129: 0 | Y129: 0 | Z129: 0 | AA129: 0 | AB129: 0 | AC129: 0 | AD129: 0 | AE129: 0 | AF129: 0 | AG129: 0 | AH129: 0 | AI129: =AI127*AI3 -> 0 | AJ129: 0 | AK129: 0 | AL129: 0 | AM129: 0 | AN129: 0 | AO129: 0 | AP129: 0 | AQ129: 0 | AR129: 0 | AS129: 0 | AT129: 0 | AU129: 0 | AV129: 0
C131: Up-front Fee | F131: =F8 -> 2019-01-01 | G131: =F35 -> 0.015 | H131: =I70 -> 574.2526502
C132: Periodic Commitment Fee Percent | H132: =F36 -> 0.0125
C133: Commitment Fee | H133: =H131 -> 574.2526502
A136: DSRA
B137: Debt Service | J137: =J128+J123 -> 0 | K137: 0 | L137: 0 | M137: 58.82352941 | N137: 62.19830961 | O137: 65.76670522 | P137: 69.53982419 | Q137: 73.52941176 | R137: 68.98783508 | S137: 64.72677089 | T137: 60.72889322 | U137: 56.97794623 | V137: 53.45867815 | W137: 50.15677921 | X137: 47.05882353 | Y137: 0 | Z137: 0 | AA137: 0 | AB137: 0 | AC137: 0 | AD137: 0 | AE137: 0 | AF137: 0 | AG137: 0 | AH137: 0 | AI137: =AI128+AI123 -> 0 | AJ137: 0 | AK137: 0 | AL137: 0 | AM137: 0 | AN137: 0 | AO137: 0 | AP137: 0 | AQ137: 0 | AR137: 0 | AS137: 0 | AT137: 0 | AU137: 0 | AV137: 0
B138: Required DSRA | G138: =F40 -> 3 | H138: =F38 -> TRUE
B139: Less: Opening DSRA Balance | J139: =J144 -> 0 | K139: =K144 -> 0 | L139: 0 | M139: 0 | N139: 0 | O139: 0 | P139: 0 | Q139: 0 | R139: 0 | S139: 0 | T139: 0 | U139: 0 | V139: 0 | W139: 0 | X139: 0 | Y139: 0 | Z139: 0 | AA139: 0 | AB139: 0 | AC139: 0 | AD139: 0 | AE139: 0 | AF139: 0 | AG139: 0 | AH139: 0 | AI139: =AI144 -> 0 | AJ139: 0 | AK139: 0 | AL139: 0 | AM139: 0 | AN139: 0 | AO139: 0 | AP139: 0 | AQ139: 0 | AR139: 0 | AS139: 0 | AT139: 0 | AU139: 0 | AV139: 0
B140: Net Funding Required | J140: =J138-J139 -> 0 | K140: =K138-K139 -> 0 | L140: 0 | M140: 0 | N140: 0 | O140: 0 | P140: 0 | Q140: 0 | R140: 0 | S140: 0 | T140: 0 | U140: 0 | V140: 0 | W140: 0 | X140: 0 | Y140: 0 | Z140: 0 | AA140: 0 | AB140: 0 | AC140: 0 | AD140: 0 | AE140: 0 | AF140: 0 | AG140: 0 | AH140: 0 | AI140: =AI138-AI139 -> 0 | AJ140: 0 | AK140: 0 | AL140: 0 | AM140: 0 | AN140: 0 | AO140: 0 | AP140: 0 | AQ140: 0 | AR140: 0 | AS140: 0 | AT140: 0 | AU140: 0 | AV140: 0
B143: Period Prior to COD | H143: =EDATE(F10,-12) -> 2021-01-01 | J143: =J2=$H$143 -> FALSE | K143: =K2=$H$143 -> FALSE | L143: TRUE | M143: FALSE | N143: FALSE | O143: FALSE | P143: FALSE | Q143: FALSE | R143: FALSE | S143: FALSE | T143: FALSE | U143: FALSE | V143: FALSE | W143: FALSE | X143: FALSE | Y143: FALSE | Z143: FALSE | AA143: FALSE | AB143: FALSE | AC143: FALSE | AD143: FALSE | AE143: FALSE | AF143: FALSE | AG143: FALSE | AH143: FALSE | AI143: FALSE | AJ143: FALSE | AK143: FALSE | AL143: FALSE | AM143: FALSE | AN143: FALSE | AO143: FALSE | AP143: FALSE | AQ143: FALSE | AR143: FALSE | AS143: FALSE | AT143: FALSE | AU143: FALSE | AV143: FALSE
B144: Opening Balance | J144: =I147 -> 0 | K144: =J147 -> 0 | L144: 0 | M144: 0 | N144: 0 | O144: 0 | P144: 0 | Q144: 0 | R144: 0 | S144: 0 | T144: 0 | U144: 0 | V144: 0 | W144: 0 | X144: 0 | Y144: 0 | Z144: 0 | AA144: 0 | AB144: 0 | AC144: 0 | AD144: 0 | AE144: 0 | AF144: 0 | AG144: 0 | AH144: 0 | AI144: =AH147 -> 0 | AJ144: =AI147 -> 0 | AK144: =AJ147 -> 0 | AL144: =AK147 -> 0 | AM144: =AL147 -> 0 | AN144: =AM147 -> 0 | AO144: =AN147 -> 0 | AP144: =AO147 -> 0 | AQ144: =AP147 -> 0 | AR144: =AQ147 -> 0 | AS144: =AR147 -> 0 | AT144: =AS147 -> 0 | AU144: =AT147 -> 0 | AV144: =AU147 -> 0
B145: Add: DSRA Funded During Construction | J145: =J140*J143 -> 0 | K145: =K140*K143 -> 0 | L145: 0 | M145: 0 | N145: 0 | O145: 0 | P145: 0 | Q145: 0 | R145: 0 | S145: 0 | T145: 0 | U145: 0 | V145: 0 | W145: 0 | X145: 0 | Y145: 0 | Z145: 0 | AA145: 0 | AB145: 0 | AC145: 0 | AD145: 0 | AE145: 0 | AF145: 0 | AG145: 0 | AH145: 0 | AI145: 0 | AJ145: 0 | AK145: 0 | AL145: 0 | AM145: 0 | AN145: 0 | AO145: 0 | AP145: 0 | AQ145: 0 | AR145: 0 | AS145: 0 | AT145: 0 | AU145: 0 | AV145: 0
B146: Less: DSRA Changes During Operation | J146: =J140*J4 -> 0 | K146: 0 | L146: 0 | M146: 0 | N146: 0 | O146: 0 | P146: 0 | Q146: 0 | R146: 0 | S146: 0 | T146: 0 | U146: 0 | V146: 0 | W146: 0 | X146: 0 | Y146: 0 | Z146: 0 | AA146: 0 | AB146: 0 | AC146: 0 | AD146: 0 | AE146: 0 | AF146: 0 | AG146: 0 | AH146: 0 | AI146: =AI140*AI4 -> 0 | AJ146: 0 | AK146: 0 | AL146: 0 | AM146: 0 | AN146: 0 | AO146: 0 | AP146: 0 | AQ146: 0 | AR146: 0 | AS146: 0 | AT146: 0 | AU146: 0 | AV146: 0
B147: Closing Balance | J147: =J144+J145+J146 -> 0 | K147: =K144+K145+K146 -> 0 | L147: 0 | M147: 0 | N147: 0 | O147: 0 | P147: 0 | Q147: 0 | R147: 0 | S147: 0 | T147: 0 | U147: 0 | V147: 0 | W147: 0 | X147: 0 | Y147: 0 | Z147: 0 | AA147: 0 | AB147: 0 | AC147: 0 | AD147: 0 | AE147: 0 | AF147: 0 | AG147: 0 | AH147: 0 | AI147: =AI144+AI145+AI146 -> 0 | AJ147: 0 | AK147: 0 | AL147: 0 | AM147: 0 | AN147: 0 | AO147: 0 | AP147: 0 | AQ147: 0 | AR147: 0 | AS147: 0 | AT147: 0 | AU147: 0 | AV147: 0
A149: Profit and Loss
C150: IDC Balance | J150: =I150+J129 -> 0 | K150: =J150+K129 -> 0 | L150: 0 | M150: 0 | N150: 0 | O150: 0 | P150: 0 | Q150: 0 | R150: 0 | S150: 0 | T150: 0 | U150: 0 | V150: 0 | W150: 0 | X150: 0 | Y150: 0 | Z150: 0 | AA150: 0 | AB150: 0 | AC150: 0 | AD150: 0 | AE150: 0 | AF150: 0 | AG150: 0 | AH150: 0 | AI150: =AH150+AI129 -> 0 | AJ150: =AI150+AJ129 -> 0 | AK150: =AJ150+AK129 -> 0 | AL150: =AK150+AL129 -> 0 | AM150: =AL150+AM129 -> 0 | AN150: =AM150+AN129 -> 0 | AO150: =AN150+AO129 -> 0 | AP150: =AO150+AP129 -> 0 | AQ150: =AP150+AQ129 -> 0 | AR150: =AQ150+AR129 -> 0 | AS150: =AR150+AS129 -> 0 | AT150: =AS150+AT129 -> 0 | AU150: =AT150+AU129 -> 0 | AV150: =AU150+AV129 -> 0
C151: Depreciation Rate | J151: =J54/J51 -> 0 | K151: 0 | L151: 0 | M151: 0.05 | N151: 0.05 | O151: 0.05 | P151: 0.05 | Q151: 0.05 | R151: 0.05 | S151: 0.05 | T151: 0.05 | U151: 0.05 | V151: 0.05 | W151: 0.05 | X151: 0.05 | Y151: 0.05 | Z151: 0.05 | AA151: 0.05 | AB151: 0.05 | AC151: 0.05 | AD151: 0.05 | AE151: 0.05 | AF151: 0.05 | AG151: 0 | AH151: 0 | AI151: =AI54/AI51 -> 0 | AJ151: 0 | AK151: 0 | AL151: 0 | AM151: 0 | AN151: 0 | AO151: 0 | AP151: 0 | AQ151: 0 | AR151: 0 | AS151: 0 | AT151: 0 | AU151: 0 | AV151: 0
C152: Depreciation on IDC | J152: =J150*J151 -> 0 | K152: =K150*K151 -> 0 | L152: 0 | M152: 0 | N152: 0 | O152: 0 | P152: 0 | Q152: 0 | R152: 0 | S152: 0 | T152: 0 | U152: 0 | V152: 0 | W152: 0 | X152: 0 | Y152: 0 | Z152: 0 | AA152: 0 | AB152: 0 | AC152: 0 | AD152: 0 | AE152: 0 | AF152: 0 | AG152: 0 | AH152: 0 | AI152: =AI150*AI151 -> 0 | AJ152: 0 | AK152: 0 | AL152: 0 | AM152: 0 | AN152: 0 | AO152: 0 | AP152: 0 | AQ152: 0 | AR152: 0 | AS152: 0 | AT152: 0 | AU152: 0 | AV152: 0
C153: Accumulated IDC Depreciation | J153: =I153+J152 -> 0 | K153: =J153+K152 -> 0 | L153: 0 | M153: 0 | N153: 0 | O153: 0 | P153: 0 | Q153: 0 | R153: 0 | S153: 0 | T153: 0 | U153: 0 | V153: 0 | W153: 0 | X153: 0 | Y153: 0 | Z153: 0 | AA153: 0 | AB153: 0 | AC153: 0 | AD153: 0 | AE153: 0 | AF153: 0 | AG153: 0 | AH153: 0 | AI153: =AH153+AI152 -> 0 | AJ153: =AI153+AJ152 -> 0 | AK153: =AJ153+AK152 -> 0 | AL153: =AK153+AL152 -> 0 | AM153: =AL153+AM152 -> 0 | AN153: =AM153+AN152 -> 0 | AO153: =AN153+AO152 -> 0 | AP153: =AO153+AP152 -> 0 | AQ153: =AP153+AQ152 -> 0 | AR153: =AQ153+AR152 -> 0 | AS153: =AR153+AS152 -> 0 | AT153: =AS153+AT152 -> 0 | AU153: =AT153+AU152 -> 0 | AV153: =AU153+AV152 -> 0
C154: Net IDC Balance | J154: =J150-J153 -> 0 | K154: =K150-K153 -> 0 | L154: 0 | M154: 0 | N154: 0 | O154: 0 | P154: 0 | Q154: 0 | R154: 0 | S154: 0 | T154: 0 | U154: 0 | V154: 0 | W154: 0 | X154: 0 | Y154: 0 | Z154: 0 | AA154: 0 | AB154: 0 | AC154: 0 | AD154: 0 | AE154: 0 | AF154: 0 | AG154: 0 | AH154: 0 | AI154: =AI150-AI153 -> 0 | AJ154: 0 | AK154: 0 | AL154: 0 | AM154: 0 | AN154: 0 | AO154: 0 | AP154: 0 | AQ154: 0 | AR154: 0 | AS154: 0 | AT154: 0 | AU154: 0 | AV154: 0
C156: EBITDA | J156: =J45 -> 0 | K156: 0 | L156: 0 | M156: 100 | N156: 105.7371263 | O156: 111.8033989 | P156: 118.2177011 | Q156: 125 | R156: 117.2793196 | S156: 110.0355105 | T156: 103.2391185 | U156: 96.86250859 | V156: 90.87975285 | W156: 85.26652466 | X156: 80 | Y156: 80 | Z156: 80 | AA156: 80 | AB156: 80 | AC156: 80 | AD156: 80 | AE156: 80 | AF156: 80 | AG156: 0 | AH156: 0 | AI156: =AI45 -> 0 | AJ156: 0 | AK156: 0 | AL156: 0 | AM156: 0 | AN156: 0 | AO156: 0 | AP156: 0 | AQ156: 0 | AR156: 0 | AS156: 0 | AT156: 0 | AU156: 0 | AV156: 0
C157: Less: Depreciation | J157: =J152+J54 -> 0 | K157: 0 | L157: 0 | M157: 36.25 | N157: 36.25 | O157: 36.25 | P157: 36.25 | Q157: 36.25 | R157: 36.25 | S157: 36.25 | T157: 36.25 | U157: 36.25 | V157: 36.25 | W157: 36.25 | X157: 36.25 | Y157: 36.25 | Z157: 36.25 | AA157: 36.25 | AB157: 36.25 | AC157: 36.25 | AD157: 36.25 | AE157: 36.25 | AF157: 36.25 | AG157: 0 | AH157: 0 | AI157: =AI152+AI54 -> 0 | AJ157: 0 | AK157: 0 | AL157: 0 | AM157: 0 | AN157: 0 | AO157: 0 | AP157: 0 | AQ157: 0 | AR157: 0 | AS157: 0 | AT157: 0 | AU157: 0 | AV157: 0
C158: EBIT | J158: =J156-J157 -> 0 | K158: =K156-K157 -> 0 | L158: 0 | M158: 63.75 | N158: 69.48712634 | O158: 75.55339887 | P158: 81.96770113 | Q158: 88.75 | R158: 81.02931964 | S158: 73.78551051 | T158: 66.98911847 | U158: 60.61250859 | V158: 54.62975285 | W158: 49.01652466 | X158: 43.75 | Y158: 43.75 | Z158: 43.75 | AA158: 43.75 | AB158: 43.75 | AC158: 43.75 | AD158: 43.75 | AE158: 43.75 | AF158: 43.75 | AG158: 0 | AH158: 0 | AI158: =AI156-AI157 -> 0 | AJ158: 0 | AK158: 0 | AL158: 0 | AM158: 0 | AN158: 0 | AO158: 0 | AP158: 0 | AQ158: 0 | AR158: 0 | AS158: 0 | AT158: 0 | AU158: 0 | AV158: 0
C159: Less: Interest Expense | J159: =J128 -> 0 | K159: =K128 -> 0 | L159: 0 | M159: 0 | N159: -2.352941176 | O159: -4.934991208 | P159: -8.151212019 | Q159: -11.41423554 | R159: -14.98186873 | S159: -18.50859629 | T159: -23.05231417 | U159: -26.73868729 | V159: -30.42221917 | W159: -34.11297865 | X159: -37.820848 | Y159: -41.55555354 | Z159: -43.3839979 | AA159: -45.29289381 | AB159: -47.28578114 | AC159: -49.36635551 | AD159: -51.53847515 | AE159: -53.80616805 | AF159: -56.17363945 | AG159: 0 | AH159: 0 | AI159: =AI128 -> 0 | AJ159: 0 | AK159: 0 | AL159: 0 | AM159: 0 | AN159: 0 | AO159: 0 | AP159: 0 | AQ159: 0 | AR159: 0 | AS159: 0 | AT159: 0 | AU159: 0 | AV159: 0
C160: EBT | J160: =J158-J159 -> 0 | K160: =K158-K159 -> 0 | L160: 0 | M160: 63.75 | N160: 71.84006752 | O160: 80.48839008 | P160: 90.11891314 | Q160: 100.1642355 | R160: 96.01118836 | S160: 92.2941068 | T160: 90.04143264 | U160: 87.35119589 | V160: 85.05197202 | W160: 83.12950331 | X160: 81.570848 | Y160: 85.30555354 | Z160: 87.1339979 | AA160: 89.04289381 | AB160: 91.03578114 | AC160: 93.11635551 | AD160: 95.28847515 | AE160: 97.55616805 | AF160: 99.92363945 | AG160: 0 | AH160: 0 | AI160: =AI158-AI159 -> 0 | AJ160: 0 | AK160: 0 | AL160: 0 | AM160: 0 | AN160: 0 | AO160: 0 | AP160: 0 | AQ160: 0 | AR160: 0 | AS160: 0 | AT160: 0 | AU160: 0 | AV160: 0
C161: Opening NOL | J161: =I164 -> 0 | K161: =J164 -> 0 | L161: 0 | M161: 0 | N161: 0 | O161: 0 | P161: 0 | Q161: 0 | R161: 0 | S161: 0 | T161: 0 | U161: 0 | V161: 0 | W161: 0 | X161: 0 | Y161: 0 | Z161: 0 | AA161: 0 | AB161: 0 | AC161: 0 | AD161: 0 | AE161: 0 | AF161: 0 | AG161: 0 | AH161: 0 | AI161: =AH164 -> 0 | AJ161: =AI164 -> 0 | AK161: =AJ164 -> 0 | AL161: =AK164 -> 0 | AM161: =AL164 -> 0 | AN161: =AM164 -> 0 | AO161: =AN164 -> 0 | AP161: =AO164 -> 0 | AQ161: =AP164 -> 0 | AR161: =AQ164 -> 0 | AS161: =AR164 -> 0 | AT161: =AS164 -> 0 | AU161: =AT164 -> 0 | AV161: =AU164 -> 0
C162: Add: Accrued Tax Loss | J162: =MAX(-J160,0) -> 0 | K162: =MAX(-K160,0) -> 0 | L162: 0 | M162: 0 | N162: 0 | O162: 0 | P162: 0 | Q162: 0 | R162: 0 | S162: 0 | T162: 0 | U162: 0 | V162: 0 | W162: 0 | X162: 0 | Y162: 0 | Z162: 0 | AA162: 0 | AB162: 0 | AC162: 0 | AD162: 0 | AE162: 0 | AF162: 0 | AG162: 0 | AH162: 0 | AI162: =MAX(-AI160,0) -> 0 | AJ162: 0 | AK162: 0 | AL162: 0 | AM162: 0 | AN162: 0 | AO162: 0 | AP162: 0 | AQ162: 0 | AR162: 0 | AS162: 0 | AT162: 0 | AU162: 0 | AV162: 0
C163: Less: NOL Used | J163: =MIN(J161,MAX(J160,0)) -> 0 | K163: =MIN(K161,MAX(K160,0)) -> 0 | L163: 0 | M163: 0 | N163: 0 | O163: 0 | P163: 0 | Q163: 0 | R163: 0 | S163: 0 | T163: 0 | U163: 0 | V163: 0 | W163: 0 | X163: 0 | Y163: 0 | Z163: 0 | AA163: 0 | AB163: 0 | AC163: 0 | AD163: 0 | AE163: 0 | AF163: 0 | AG163: 0 | AH163: 0 | AI163: =MIN(AI161,MAX(AI160,0)) -> 0 | AJ163: 0 | AK163: 0 | AL163: 0 | AM163: 0 | AN163: 0 | AO163: 0 | AP163: 0 | AQ163: 0 | AR163: 0 | AS163: 0 | AT163: 0 | AU163: 0 | AV163: 0
C164: Closing NOL | J164: =J161+J162-J163 -> 0 | K164: =K161+K162-K163 -> 0 | L164: 0 | M164: 0 | N164: 0 | O164: 0 | P164: 0 | Q164: 0 | R164: 0 | S164: 0 | T164: 0 | U164: 0 | V164: 0 | W164: 0 | X164: 0 | Y164: 0 | Z164: 0 | AA164: 0 | AB164: 0 | AC164: 0 | AD164: 0 | AE164: 0 | AF164: 0 | AG164: 0 | AH164: 0 | AI164: =AI161+AI162-AI163 -> 0 | AJ164: 0 | AK164: 0 | AL164: 0 | AM164: 0 | AN164: 0 | AO164: 0 | AP164: 0 | AQ164: 0 | AR164: 0 | AS164: 0 | AT164: 0 | AU164: 0 | AV164: 0
C165: EBT after NOL | J165: =J160+J162-J163 -> 0 | K165: =K160+K162-K163 -> 0 | L165: 0 | M165: 63.75 | N165: 71.84006752 | O165: 80.48839008 | P165: 90.11891314 | Q165: 100.1642355 | R165: 96.01118836 | S165: 92.2941068 | T165: 90.04143264 | U165: 87.35119589 | V165: 85.05197202 | W165: 83.12950331 | X165: 81.570848 | Y165: 85.30555354 | Z165: 87.1339979 | AA165: 89.04289381 | AB165: 91.03578114 | AC165: 93.11635551 | AD165: 95.28847515 | AE165: 97.55616805 | AF165: 99.92363945 | AG165: 0 | AH165: 0 | AI165: =AI160+AI162-AI163 -> 0 | AJ165: 0 | AK165: 0 | AL165: 0 | AM165: 0 | AN165: 0 | AO165: 0 | AP165: 0 | AQ165: 0 | AR165: 0 | AS165: 0 | AT165: 0 | AU165: 0 | AV165: 0
C166: Taxes | H166: =F21 -> 0.21 | J166: =$H$166*J165 -> 0 | K166: =$H$166*K165 -> 0 | L166: 0 | M166: 13.3875 | N166: 15.08641418 | O166: 16.90256192 | P166: 18.92497176 | Q166: 21.03448946 | R166: 20.16234956 | S166: 19.38176243 | T166: 18.90870085 | U166: 18.34375114 | V166: 17.86091412 | W166: 17.4571957 | X166: 17.12987808 | Y166: 17.91416624 | Z166: 18.29813956 | AA166: 18.6990077 | AB166: 19.11751404 | AC166: 19.55443466 | AD166: 20.01057978 | AE166: 20.48679529 | AF166: 20.98396428 | AG166: 0 | AH166: 0 | AI166: =$H$166*AI165 -> 0 | AJ166: 0 | AK166: 0 | AL166: 0 | AM166: 0 | AN166: 0 | AO166: 0 | AP166: 0 | AQ166: 0 | AR166: 0 | AS166: 0 | AT166: 0 | AU166: 0 | AV166: 0
C167: Net Income | J167: =J165-J166 -> 0 | K167: =K165-K166 -> 0 | L167: 0 | M167: 50.3625 | N167: 56.75365334 | O167: 63.58582817 | P167: 71.19394138 | Q167: 79.12974608 | R167: 75.84883881 | S167: 72.91234437 | T167: 71.13273179 | U167: 69.00744475 | V167: 67.19105789 | W167: 65.67230762 | X167: 64.44096992 | Y167: 67.3913873 | Z167: 68.83585834 | AA167: 70.34388611 | AB167: 71.9182671 | AC167: 73.56192085 | AD167: 75.27789537 | AE167: 77.06937276 | AF167: 78.93967516 | AG167: 0 | AH167: 0 | AI167: =AI165-AI166 -> 0 | AJ167: 0 | AK167: 0 | AL167: 0 | AM167: 0 | AN167: 0 | AO167: 0 | AP167: 0 | AQ167: 0 | AR167: 0 | AS167: 0 | AT167: 0 | AU167: 0 | AV167: 0
A169: Cash Flow Waterfall
C170: EBITDA | J170: =J156 -> 0 | K170: =K156 -> 0 | L170: 0 | M170: 100 | N170: 105.7371263 | O170: 111.8033989 | P170: 118.2177011 | Q170: 125 | R170: 117.2793196 | S170: 110.0355105 | T170: 103.2391185 | U170: 96.86250859 | V170: 90.87975285 | W170: 85.26652466 | X170: 80 | Y170: 80 | Z170: 80 | AA170: 80 | AB170: 80 | AC170: 80 | AD170: 80 | AE170: 80 | AF170: 80 | AG170: 0 | AH170: 0 | AI170: =AI156 -> 0 | AJ170: 0 | AK170: 0 | AL170: 0 | AM170: 0 | AN170: 0 | AO170: 0 | AP170: 0 | AQ170: 0 | AR170: 0 | AS170: 0 | AT170: 0 | AU170: 0 | AV170: 0
C171: Less: Taxes | J171: =J166 -> 0 | K171: =K166 -> 0 | L171: 0 | M171: 13.3875 | N171: 15.08641418 | O171: 16.90256192 | P171: 18.92497176 | Q171: 21.03448946 | R171: 20.16234956 | S171: 19.38176243 | T171: 18.90870085 | U171: 18.34375114 | V171: 17.86091412 | W171: 17.4571957 | X171: 17.12987808 | Y171: 17.91416624 | Z171: 18.29813956 | AA171: 18.6990077 | AB171: 19.11751404 | AC171: 19.55443466 | AD171: 20.01057978 | AE171: 20.48679529 | AF171: 20.98396428 | AG171: 0 | AH171: 0 | AI171: =AI166 -> 0 | AJ171: 0 | AK171: 0 | AL171: 0 | AM171: 0 | AN171: 0 | AO171: 0 | AP171: 0 | AQ171: 0 | AR171: 0 | AS171: 0 | AT171: 0 | AU171: 0 | AV171: 0
C172: CFADS | J172: =J170 -> 0 | K172: =K170 -> 0 | L172: 0 | M172: 100 | N172: 105.7371263 | O172: 111.8033989 | P172: 118.2177011 | Q172: 125 | R172: 117.2793196 | S172: 110.0355105 | T172: 103.2391185 | U172: 96.86250859 | V172: 90.87975285 | W172: 85.26652466 | X172: 80 | Y172: 80 | Z172: 80 | AA172: 80 | AB172: 80 | AC172: 80 | AD172: 80 | AE172: 80 | AF172: 80 | AG172: 0 | AH172: 0 | AI172: 0 | AJ172: 0 | AK172: 0 | AL172: 0 | AM172: 0 | AN172: 0 | AO172: 0 | AP172: 0 | AQ172: 0 | AR172: 0 | AS172: 0 | AT172: 0 | AU172: 0 | AV172: 0
C173: Less: Interest Expense | J173: =J159 -> 0 | K173: =K159 -> 0 | L173: 0 | M173: 0 | N173: -2.352941176 | O173: -4.934991208 | P173: -8.151212019 | Q173: -11.41423554 | R173: -14.98186873 | S173: -18.50859629 | T173: -23.05231417 | U173: -26.73868729 | V173: -30.42221917 | W173: -34.11297865 | X173: -37.820848 | Y173: -41.55555354 | Z173: -43.3839979 | AA173: -45.29289381 | AB173: -47.28578114 | AC173: -49.36635551 | AD173: -51.53847515 | AE173: -53.80616805 | AF173: -56.17363945 | AG173: 0 | AH173: 0 | AI173: =AI159 -> 0 | AJ173: 0 | AK173: 0 | AL173: 0 | AM173: 0 | AN173: 0 | AO173: 0 | AP173: 0 | AQ173: 0 | AR173: 0 | AS173: 0 | AT173: 0 | AU173: 0 | AV173: 0
C174: Less: Repayment | J174: =J123 -> 0 | K174: 0 | L174: 0 | M174: 58.82352941 | N174: 64.55125079 | O174: 70.70169643 | P174: 77.69103621 | Q174: 84.9436473 | R174: 83.96970381 | S174: 83.23536718 | T174: 83.78120739 | U174: 83.71663353 | V174: 83.88089732 | W174: 84.26975786 | X174: 84.87967153 | Y174: 41.55555354 | Z174: 43.3839979 | AA174: 45.29289381 | AB174: 47.28578114 | AC174: 49.36635551 | AD174: 51.53847515 | AE174: 53.80616805 | AF174: 56.17363945 | AG174: 0 | AH174: 0 | AI174: =AI123 -> 0 | AJ174: 0 | AK174: 0 | AL174: 0 | AM174: 0 | AN174: 0 | AO174: 0 | AP174: 0 | AQ174: 0 | AR174: 0 | AS174: 0 | AT174: 0 | AU174: 0 | AV174: 0
C175: Net Cash Flow | J175: =J172-J173-J174 -> 0 | K175: =K172-K173-K174 -> 0 | L175: 0 | M175: 41.17647059 | N175: 43.53881673 | O175: 46.03669365 | P175: 48.67787693 | Q175: 51.47058824 | R175: 48.29148456 | S175: 45.30873962 | T175: 42.51022525 | U175: 39.88456236 | V175: 37.4210747 | W175: 35.10974545 | X175: 32.94117647 | Y175: 80 | Z175: 80 | AA175: 80 | AB175: 80 | AC175: 80 | AD175: 80 | AE175: 80 | AF175: 80 | AG175: 0 | AH175: 0 | AI175: =AI172-AI173-AI174 -> 0 | AJ175: 0 | AK175: 0 | AL175: 0 | AM175: 0 | AN175: 0 | AO175: 0 | AP175: 0 | AQ175: 0 | AR175: 0 | AS175: 0 | AT175: 0 | AU175: 0 | AV175: 0
C176: Less: Change in DSRA | J176: =J146 -> 0 | K176: =K146 -> 0 | L176: 0 | M176: 0 | N176: 0 | O176: 0 | P176: 0 | Q176: 0 | R176: 0 | S176: 0 | T176: 0 | U176: 0 | V176: 0 | W176: 0 | X176: 0 | Y176: 0 | Z176: 0 | AA176: 0 | AB176: 0 | AC176: 0 | AD176: 0 | AE176: 0 | AF176: 0 | AG176: 0 | AH176: 0 | AI176: =AI146 -> 0 | AJ176: 0 | AK176: 0 | AL176: 0 | AM176: 0 | AN176: 0 | AO176: 0 | AP176: 0 | AQ176: 0 | AR176: 0 | AS176: 0 | AT176: 0 | AU176: 0 | AV176: 0
C177: Less: Cash Flow Sweep
C178: Net Dividends | J178: =J175-J176-J177 -> 0 | K178: =K175-K176-K177 -> 0 | L178: 0 | M178: 41.17647059 | N178: 43.53881673 | O178: 46.03669365 | P178: 48.67787693 | Q178: 51.47058824 | R178: 48.29148456 | S178: 45.30873962 | T178: 42.51022525 | U178: 39.88456236 | V178: 37.4210747 | W178: 35.10974545 | X178: 32.94117647 | Y178: 80 | Z178: 80 | AA178: 80 | AB178: 80 | AC178: 80 | AD178: 80 | AE178: 80 | AF178: 80 | AG178: 0 | AH178: 0 | AI178: =AI175-AI176-AI177 -> 0 | AJ178: 0 | AK178: 0 | AL178: 0 | AM178: 0 | AN178: 0 | AO178: 0 | AP178: 0 | AQ178: 0 | AR178: 0 | AS178: 0 | AT178: 0 | AU178: 0 | AV178: 0
A180: Balance Sheet
B181: Assets
C182: DSRA | J182: =J147 -> 0 | K182: =K147 -> 0 | L182: 0 | M182: 0 | N182: 0 | O182: 0 | P182: 0 | Q182: 0 | R182: 0 | S182: 0 | T182: 0 | U182: 0 | V182: 0 | W182: 0 | X182: 0 | Y182: 0 | Z182: 0 | AA182: 0 | AB182: 0 | AC182: 0 | AD182: 0 | AE182: 0 | AF182: 0 | AG182: 0 | AH182: 0 | AI182: =AI147 -> 0 | AJ182: 0 | AK182: 0 | AL182: 0 | AM182: 0 | AN182: 0 | AO182: 0 | AP182: 0 | AQ182: 0 | AR182: 0 | AS182: 0 | AT182: 0 | AU182: 0 | AV182: 0
C183: Gross Plant | J183: =J51 -> 241.6666667 | K183: 483.3333333 | L183: 725 | M183: 725 | N183: 725 | O183: 725 | P183: 725 | Q183: 725 | R183: 725 | S183: 725 | T183: 725 | U183: 725 | V183: 725 | W183: 725 | X183: 725 | Y183: 725 | Z183: 725 | AA183: 725 | AB183: 725 | AC183: 725 | AD183: 725 | AE183: 725 | AF183: 725 | AG183: 725 | AH183: 725 | AI183: =AI51 -> 725 | AJ183: 725 | AK183: 725 | AL183: 725 | AM183: 725 | AN183: 725 | AO183: 725 | AP183: 725 | AQ183: 725 | AR183: 725 | AS183: 725 | AT183: 725 | AU183: 725 | AV183: 725
C184: Less: Accumulated Depreciation | J184: =-J52 -> 0 | K184: 0 | L184: 0 | M184: -36.25 | N184: -72.5 | O184: -108.75 | P184: -145 | Q184: -181.25 | R184: -217.5 | S184: -253.75 | T184: -290 | U184: -326.25 | V184: -362.5 | W184: -398.75 | X184: -435 | Y184: -471.25 | Z184: -507.5 | AA184: -543.75 | AB184: -580 | AC184: -616.25 | AD184: -652.5 | AE184: -688.75 | AF184: -725 | AG184: -725 | AH184: -725 | AI184: =-AI52 -> -725 | AJ184: -725 | AK184: -725 | AL184: -725 | AM184: -725 | AN184: -725 | AO184: -725 | AP184: -725 | AQ184: -725 | AR184: -725 | AS184: -725 | AT184: -725 | AU184: -725 | AV184: -725
C185: IDC Net Plant | J185: =J154 -> 0 | K185: =K154 -> 0 | L185: 0 | M185: 0 | N185: 0 | O185: 0 | P185: 0 | Q185: 0 | R185: 0 | S185: 0 | T185: 0 | U185: 0 | V185: 0 | W185: 0 | X185: 0 | Y185: 0 | Z185: 0 | AA185: 0 | AB185: 0 | AC185: 0 | AD185: 0 | AE185: 0 | AF185: 0 | AG185: 0 | AH185: 0 | AI185: =AI154 -> 0 | AJ185: 0 | AK185: 0 | AL185: 0 | AM185: 0 | AN185: 0 | AO185: 0 | AP185: 0 | AQ185: 0 | AR185: 0 | AS185: 0 | AT185: 0 | AU185: 0 | AV185: 0
D186: Total Assets | J186: =SUM(J182:J185) -> 241.6666667 | K186: =SUM(K182:K185) -> 483.3333333 | L186: 725 | M186: 688.75 | N186: 652.5 | O186: 616.25 | P186: 580 | Q186: 543.75 | R186: 507.5 | S186: 471.25 | T186: 435 | U186: 398.75 | V186: 362.5 | W186: 326.25 | X186: 290 | Y186: 253.75 | Z186: 217.5 | AA186: 181.25 | AB186: 145 | AC186: 108.75 | AD186: 72.5 | AE186: 36.25 | AF186: 0 | AG186: 0 | AH186: 0 | AI186: =SUM(AI182:AI185) -> 0 | AJ186: 0 | AK186: 0 | AL186: 0 | AM186: 0 | AN186: 0 | AO186: 0 | AP186: 0 | AQ186: 0 | AR186: 0 | AS186: 0 | AT186: 0 | AU186: 0 | AV186: 0
B188: Equity Balance
C189: Opening Balance | J189: =I193 -> 0 | K189: =J193 -> 108.5380918 | L189: 108.5380918 | M189: 108.5380918 | N189: 117.7241212 | O189: 130.9389579 | P189: 148.4880924 | Q189: 171.0041568 | R189: 198.6633147 | S189: 226.2206689 | T189: 253.8242737 | U189: 282.4467802 | V189: 311.5696626 | W189: 341.3396458 | X189: 371.9022079 | Y189: 403.4020014 | Z189: 390.7933887 | AA189: 379.629247 | AB189: 369.9731331 | AC189: 361.8914002 | AD189: 355.4533211 | AE189: 350.7312165 | AF189: 347.8005892 | AG189: 346.7402644 | AH189: 346.7402644 | AI189: =AH193 -> 346.7402644 | AJ189: =AI193 -> 346.7402644 | AK189: =AJ193 -> 346.7402644 | AL189: =AK193 -> 346.7402644 | AM189: =AL193 -> 346.7402644 | AN189: =AM193 -> 346.7402644 | AO189: =AN193 -> 346.7402644 | AP189: =AO193 -> 346.7402644 | AQ189: =AP193 -> 346.7402644 | AR189: =AQ193 -> 346.7402644 | AS189: =AR193 -> 346.7402644 | AT189: =AS193 -> 346.7402644 | AU189: =AT193 -> 346.7402644 | AV189: =AU193 -> 346.7402644
C190: Add: Funding | J190: =J115 -> 108.5380918 | K190: 0 | L190: 0 | M190: 0 | N190: 0 | O190: 0 | P190: 0 | Q190: 0 | R190: 0 | S190: 0 | T190: 0 | U190: 0 | V190: 0 | W190: 0 | X190: 0 | Y190: 0 | Z190: 0 | AA190: 0 | AB190: 0 | AC190: 0 | AD190: 0 | AE190: 0 | AF190: 0 | AG190: 0 | AH190: 0 | AI190: =AI115 -> 0 | AJ190: 0 | AK190: 0 | AL190: 0 | AM190: 0 | AN190: 0 | AO190: 0 | AP190: 0 | AQ190: 0 | AR190: 0 | AS190: 0 | AT190: 0 | AU190: 0 | AV190: 0
C191: Add: Net Income | J191: =J167 -> 0 | K191: =K167 -> 0 | L191: 0 | M191: 50.3625 | N191: 56.75365334 | O191: 63.58582817 | P191: 71.19394138 | Q191: 79.12974608 | R191: 75.84883881 | S191: 72.91234437 | T191: 71.13273179 | U191: 69.00744475 | V191: 67.19105789 | W191: 65.67230762 | X191: 64.44096992 | Y191: 67.3913873 | Z191: 68.83585834 | AA191: 70.34388611 | AB191: 71.9182671 | AC191: 73.56192085 | AD191: 75.27789537 | AE191: 77.06937276 | AF191: 78.93967516 | AG191: 0 | AH191: 0 | AI191: =AI167 -> 0 | AJ191: 0 | AK191: 0 | AL191: 0 | AM191: 0 | AN191: 0 | AO191: 0 | AP191: 0 | AQ191: 0 | AR191: 0 | AS191: 0 | AT191: 0 | AU191: 0 | AV191: 0
C192: Less: Dividends | J192: =-J178 -> 0 | K192: =-K178 -> 0 | L192: 0 | M192: -41.17647059 | N192: -43.53881673 | O192: -46.03669365 | P192: -48.67787693 | Q192: -51.47058824 | R192: -48.29148456 | S192: -45.30873962 | T192: -42.51022525 | U192: -39.88456236 | V192: -37.4210747 | W192: -35.10974545 | X192: -32.94117647 | Y192: -80 | Z192: -80 | AA192: -80 | AB192: -80 | AC192: -80 | AD192: -80 | AE192: -80 | AF192: -80 | AG192: 0 | AH192: 0 | AI192: =-AI178 -> 0 | AJ192: 0 | AK192: 0 | AL192: 0 | AM192: 0 | AN192: 0 | AO192: 0 | AP192: 0 | AQ192: 0 | AR192: 0 | AS192: 0 | AT192: 0 | AU192: 0 | AV192: 0
C193: Closing Balance | J193: =SUM(J189:J192) -> 108.5380918 | K193: =SUM(K189:K192) -> 108.5380918 | L193: 108.5380918 | M193: 117.7241212 | N193: 130.9389579 | O193: 148.4880924 | P193: 171.0041568 | Q193: 198.6633147 | R193: 226.2206689 | S193: 253.8242737 | T193: 282.4467802 | U193: 311.5696626 | V193: 341.3396458 | W193: 371.9022079 | X193: 403.4020014 | Y193: 390.7933887 | Z193: 379.629247 | AA193: 369.9731331 | AB193: 361.8914002 | AC193: 355.4533211 | AD193: 350.7312165 | AE193: 347.8005892 | AF193: 346.7402644 | AG193: 346.7402644 | AH193: 346.7402644 | AI193: =SUM(AI189:AI192) -> 346.7402644 | AJ193: 346.7402644 | AK193: 346.7402644 | AL193: 346.7402644 | AM193: 346.7402644 | AN193: 346.7402644 | AO193: 346.7402644 | AP193: 346.7402644 | AQ193: 346.7402644 | AR193: 346.7402644 | AS193: 346.7402644 | AT193: 346.7402644 | AU193: 346.7402644 | AV193: 346.7402644
C194: Debt Balance | J194: =J124 -> 0 | K194: 0 | L194: 0 | M194: -58.82352941 | N194: -123.3747802 | O194: -194.0764766 | P194: -271.7675128 | Q194: -356.7111601 | R194: -440.680864 | S194: -523.9162311 | T194: -607.6974385 | U194: -691.414072 | V194: -775.2949694 | W194: -859.5647272 | X194: -944.4443987 | Y194: -985.9999523 | Z194: -1029.38395 | AA194: -1074.676844 | AB194: -1121.962625 | AC194: -1171.328981 | AD194: -1222.867456 | AE194: -1276.673624 | AF194: -1332.847263 | AG194: -1332.847263 | AH194: -1332.847263 | AI194: =AI124 -> -1332.847263 | AJ194: -1332.847263 | AK194: -1332.847263 | AL194: -1332.847263 | AM194: -1332.847263 | AN194: -1332.847263 | AO194: -1332.847263 | AP194: -1332.847263 | AQ194: -1332.847263 | AR194: -1332.847263 | AS194: -1332.847263 | AT194: -1332.847263 | AU194: -1332.847263 | AV194: -1332.847263
D195: Total Liabilities and Capital | J195: =SUM(J193:J194) -> 108.5380918 | K195: =SUM(K193:K194) -> 108.5380918 | L195: 108.5380918 | M195: 58.90059184 | N195: 7.564177656 | O195: -45.58838426 | P195: -100.763356 | Q195: -158.0478455 | R195: -214.460195 | S195: -270.0919575 | T195: -325.2506583 | U195: -379.8444095 | V195: -433.9553236 | W195: -487.6625193 | X195: -541.0423974 | Y195: -595.2065636 | Z195: -649.7547032 | AA195: -704.7037109 | AB195: -760.0712249 | AC195: -815.8756596 | AD195: -872.1362393 | AE195: -928.8730346 | AF195: -986.1069989 | AG195: -986.1069989 | AH195: -986.1069989 | AI195: =SUM(AI193:AI194) -> -986.1069989 | AJ195: -986.1069989 | AK195: -986.1069989 | AL195: -986.1069989 | AM195: -986.1069989 | AN195: -986.1069989 | AO195: -986.1069989 | AP195: -986.1069989 | AQ195: -986.1069989 | AR195: -986.1069989 | AS195: -986.1069989 | AT195: -986.1069989 | AU195: -986.1069989 | AV195: -986.1069989
D197: Difference | J197: =J195-J186 -> -133.1285748 | K197: =K195-K186 -> -374.7952415 | L197: -616.4619082 | M197: -629.8494082 | N197: -644.9358223 | O197: -661.8383843 | P197: -680.763356 | Q197: -701.7978455 | R197: -721.960195 | S197: -741.3419575 | T197: -760.2506583 | U197: -778.5944095 | V197: -796.4553236 | W197: -813.9125193 | X197: -831.0423974 | Y197: -848.9565636 | Z197: -867.2547032 | AA197: -885.9537109 | AB197: -905.0712249 | AC197: -924.6256596 | AD197: -944.6362393 | AE197: -965.1230346 | AF197: -986.1069989 | AG197: -986.1069989 | AH197: -986.1069989 | AI197: =AI195-AI186 -> -986.1069989 | AJ197: -986.1069989 | AK197: -986.1069989 | AL197: -986.1069989 | AM197: -986.1069989 | AN197: -986.1069989 | AO197: -986.1069989 | AP197: -986.1069989 | AQ197: -986.1069989 | AR197: -986.1069989 | AS197: -986.1069989 | AT197: -986.1069989 | AU197: -986.1069989 | AV197: -986.1069989
A199: Outputs
B200: CFADS | J200: =J172 -> 0 | K200: =K172 -> 0 | L200: 0 | M200: 100 | N200: 105.7371263 | O200: 111.8033989 | P200: 118.2177011 | Q200: 125 | R200: 117.2793196 | S200: 110.0355105 | T200: 103.2391185 | U200: 96.86250859 | V200: 90.87975285 | W200: 85.26652466 | X200: 80 | Y200: 80 | Z200: 80 | AA200: 80 | AB200: 80 | AC200: 80 | AD200: 80 | AE200: 80 | AF200: 80 | AG200: 0 | AH200: 0 | AI200: =AI172 -> 0 | AJ200: 0 | AK200: 0 | AL200: 0 | AM200: 0 | AN200: 0 | AO200: 0 | AP200: 0 | AQ200: 0 | AR200: 0 | AS200: 0 | AT200: 0 | AU200: 0 | AV200: 0
B201: Debt Service | J201: =J173+J174 -> 0 | K201: =K173+K174 -> 0 | L201: 0 | M201: 58.82352941 | N201: 62.19830961 | O201: 65.76670522 | P201: 69.53982419 | Q201: 73.52941176 | R201: 68.98783508 | S201: 64.72677089 | T201: 60.72889322 | U201: 56.97794623 | V201: 53.45867815 | W201: 50.15677921 | X201: 47.05882353 | Y201: 0 | Z201: 0 | AA201: 0 | AB201: 0 | AC201: 0 | AD201: 0 | AE201: 0 | AF201: 0 | AG201: 0 | AH201: 0 | AI201: =AI173+AI174 -> 0 | AJ201: 0 | AK201: 0 | AL201: 0 | AM201: 0 | AN201: 0 | AO201: 0 | AP201: 0 | AQ201: 0 | AR201: 0 | AS201: 0 | AT201: 0 | AU201: 0 | AV201: 0
C202: DSCR | J202: =IF(J201>0.1,J200/J201) -> FALSE | K202: =IF(K201>0.1,K200/K201) -> FALSE | L202: FALSE | M202: 1.7 | N202: 1.7 | O202: 1.7 | P202: 1.7 | Q202: 1.7 | R202: 1.7 | S202: 1.7 | T202: 1.7 | U202: 1.7 | V202: 1.7 | W202: 1.7 | X202: 1.7 | Y202: FALSE | Z202: FALSE | AA202: FALSE | AB202: FALSE | AC202: FALSE | AD202: FALSE | AE202: FALSE | AF202: FALSE | AG202: FALSE | AH202: FALSE | AI202: =IF(AI201>0.1,AI200/AI201) -> FALSE | AJ202: FALSE | AK202: FALSE | AL202: FALSE | AM202: FALSE | AN202: FALSE | AO202: FALSE | AP202: FALSE | AQ202: FALSE | AR202: FALSE | AS202: FALSE | AT202: FALSE | AU202: FALSE | AV202: FALSE
B204: Equity Cash Flow | J204: =J178-J115 -> -108.5380918 | K204: 0 | L204: 0 | M204: 41.17647059 | N204: 43.53881673 | O204: 46.03669365 | P204: 48.67787693 | Q204: 51.47058824 | R204: 48.29148456 | S204: 45.30873962 | T204: 42.51022525 | U204: 39.88456236 | V204: 37.4210747 | W204: 35.10974545 | X204: 32.94117647 | Y204: 80 | Z204: 80 | AA204: 80 | AB204: 80 | AC204: 80 | AD204: 80 | AE204: 80 | AF204: 80 | AG204: 0 | AH204: 0 | AI204: =AI178-AI115 -> 0 | AJ204: 0 | AK204: 0 | AL204: 0 | AM204: 0 | AN204: 0 | AO204: 0 | AP204: 0 | AQ204: 0 | AR204: 0 | AS204: 0 | AT204: 0 | AU204: 0 | AV204: 0
B205: Equity IRR | E205: =IFERROR(IRR(204:204),0) -> 0.2638932681

Sheet Other Sheet
